fUSD/lending_fUSD_20251123
["ID","MTS","AMOUNT","RATE_DAILY","PERIOD"]
[394739750,1763922653766,-500.0,0.00038356,8]
[394739751,1763922653776,-500.0,0.00038356,8]
[394739752,1763922653786,-500.0,0.00038356,8]
[394739753,1763922653796,-960.0,0.00038356,8]
[394739754,1763922653805,-500.0,0.00038356,8]
[394739755,1763922653814,-392.75718976,0.00038356,5]
[394739756,1763922653824,-500.0,0.00038356,8]
[394739757,1763922653833,-603.78,0.00038356,8]
[394739758,1763922653843,-500.0,0.00038356,8]
[394739759,1763922653852,-500.0,0.00038356,8]
[394739760,1763922653862,-500.0,0.00038356,8]
[394739761,1763922653872,-500.0,0.00038356,8]
[394739762,1763922653881,-500.0,0.00038356,8]
[394739763,1763922653891,-2281.32,0.00038356,8]
[394739764,1763922653900,-500.0,0.00038356,8]
[394739765,1763922653910,-500.0,0.00038356,8]
[394739766,1763922653920,-500.0,0.00038356,8]
[394739767,1763922653930,-543.13,0.00038356,8]
[394739768,1763922653938,-500.0,0.00038356,8]
[394739769,1763922653948,-896.57,0.00038356,8]
[394739770,1763922653959,-738.55,0.00038356,8]
[394739771,1763922653970,-348.49206739,0.00038356,8]
[394739772,1763922653980,-500.0,0.00038356,8]
[394739773,1763922653989,-500.0,0.00038356,8]
[394739774,1763922653999,-915.47,0.00038356,8]
[394739775,1763922654008,-680.72,0.00038356,8]
[394739776,1763922654018,-638.71,0.00038356,8]
[394739777,1763922654028,-500.0,0.00038356,8]
[394739778,1763922654038,-300.0,0.00038356,2]
[394739779,1763922654048,-500.0,0.00038356,8]
[394739780,1763922654057,-1113.5,0.00038356,8]
[394739781,1763922654067,-500.0,0.00038356,8]
[394739782,1763922654076,-393.60601873,0.00038356,8]
[394739783,1763922654086,-501.77817234,0.00038356,8]
[394739784,1763922654095,-500.0,0.00038356,8]
[394739785,1763922654105,-500.0,0.00038356,8]
[394739786,1763922654115,-500.0,0.00038356,8]
[394739787,1763922654125,-500.0,0.00038356,8]
[394739788,1763922654135,-500.0,0.00038356,8]
[394739789,1763922654144,-500.0,0.00038356,8]
[394739790,1763922654154,-500.0,0.00038356,8]
[394739791,1763922654164,-500.0,0.00038356,8]
[394739792,1763922654175,-500.0,0.00038356,8]
[394739793,1763922654185,-500.0,0.00038356,8]
[394739794,1763922654194,-500.0,0.00038356,8]
[394739795,1763922654205,-500.0,0.00038356,8]
[394739796,1763922654219,-500.0,0.00038356,8]
[394739797,1763922654229,-600.96,0.00038356,8]
[394739798,1763922654239,-500.0,0.00038356,8]
[394739799,1763922654250,-500.0,0.00038356,8]
[394739800,1763922654260,-500.0,0.00038356,8]
[394739801,1763922654269,-500.0,0.00038356,8]
[394739802,1763922654283,-500.0,0.00038356,8]
[394739803,1763922654295,-500.0,0.00038356,8]
[394739804,1763922654305,-616.03,0.00038356,8]
[394739805,1763922654315,-1175.5,0.00038356,8]
[394739806,1763922654324,-376.79228575,0.00038356,8]
[394739807,1763922654335,-500.0,0.00038356,8]
[394739808,1763922654344,-500.0,0.00038356,8]
[394739809,1763922654353,-500.0,0.00038356,8]
[394739810,1763922654364,-500.0,0.00038356,8]
[394739811,1763922654374,-500.0,0.00038356,8]
[394739812,1763922654384,-500.0,0.00038356,8]
[394739813,1763922654394,-1411.24,0.00038356,8]
[394739814,1763922654404,-500.0,0.00038356,8]
[394739815,1763922654415,-500.0,0.00038356,8]
[394739816,1763922654426,-500.0,0.00038356,8]
[394739817,1763922654437,-777.92,0.00038356,8]
[394739818,1763922654448,-500.0,0.00038356,8]
[394739819,1763922654458,-500.0,0.00038356,8]
[394739820,1763922654468,-653.12,0.00038356,8]
[394739821,1763922654478,-519.1,0.00038356,8]
[394739822,1763922654488,-500.0,0.00038356,8]
[394739823,1763922654498,-500.0,0.00038356,8]
[394739824,1763922654507,-500.0,0.00038356,8]
[394739825,1763922654516,-921.33,0.00038356,8]
[394739826,1763922654526,-500.0,0.00038356,8]
[394739827,1763922654535,-500.0,0.00038356,8]
[394739828,1763922654544,-500.0,0.00038356,8]
[394739829,1763922654554,-520.13,0.00038356,8]
[394739830,1763922654563,-500.0,0.00038356,8]
[394739831,1763922654573,-151.0,0.00038356,31]
[394739832,1763922654582,-500.0,0.00038356,8]
[394739833,1763922654591,-675.26,0.00038356,8]
[394739834,1763922654601,-844.89,0.00038356,8]
[394739835,1763922654610,-151.0,0.00038356,31]
[394739836,1763922654619,-500.0,0.00038356,8]
[394739837,1763922654628,-692.98,0.00038356,8]
[394739838,1763922654637,-500.0,0.00038356,8]
[394739839,1763922654647,-500.0,0.00038356,8]
[394739840,1763922654656,-500.0,0.00038356,8]
[394739841,1763922654666,-500.0,0.00038356,8]
[394739842,1763922654675,-500.0,0.00038356,8]
[394739843,1763922654685,-500.0,0.00038356,8]
[394739844,1763922654695,-500.0,0.00038356,8]
[394739845,1763922654703,-500.0,0.00038356,8]
[394739846,1763922654713,-732.21,0.00038356,8]
[394739847,1763922654722,-532.45,0.00038356,8]
[394739848,1763922654732,-674.9,0.00038356,8]
[394739849,1763922654742,-500.0,0.00038356,8]
[394739850,1763922654753,-500.0,0.00038356,8]
[394739851,1763922654763,-500.0,0.00038356,8]
[394739852,1763922654773,-500.0,0.00038356,8]
[394739853,1763922654783,-500.0,0.00038356,8]
[394739854,1763922654792,-1075.0,0.00038356,8]
[394739855,1763922654802,-286.9,0.00038356,8]
[394739856,1763922654811,-500.0,0.00038356,8]
[394739857,1763922654821,-500.0,0.00038356,8]
[394739858,1763922654830,-669.58,0.00038356,8]
[394739859,1763922654839,-244.75024626,0.00038356,8]
[394739860,1763922654848,-500.0,0.00038356,8]
[394739861,1763922654858,-500.0,0.00038356,8]
[394739862,1763922654867,-500.0,0.00038356,8]
[394739863,1763922654877,-500.0,0.00038356,8]
[394739864,1763922654887,-1069.26,0.00038356,8]
[394739865,1763922654897,-500.0,0.00038356,8]
[394739866,1763922654906,-634.91,0.00038356,8]
[394739867,1763922654916,-501.92469515,0.00038356,8]
[394739868,1763922654925,-500.0,0.00038356,8]
[394739869,1763922654934,-500.0,0.00038356,8]
[394739870,1763922654944,-500.0,0.00038356,8]
[394739871,1763922654953,-514.5,0.00038356,8]
[394739872,1763922654963,-500.0,0.00038356,8]
[394739873,1763922654972,-554.38,0.00038356,8]
[394739874,1763922654981,-500.0,0.00038356,8]
[394739875,1763922654991,-500.0,0.00038356,8]
[394739876,1763922655000,-500.0,0.00038356,8]
[394739877,1763922655010,-500.0,0.00038356,8]
[394739878,1763922655019,-500.0,0.00038356,8]
[394739879,1763922655029,-500.0,0.00038356,8]
[394739880,1763922655039,-1117.75,0.00038356,8]
[394739881,1763922655048,-559.94,0.00038356,8]
[394739882,1763922655057,-500.0,0.00038356,8]
[394739883,1763922655067,-500.0,0.00038356,8]
[394739884,1763922655077,-500.0,0.00038356,8]
[394739885,1763922655086,-545.86,0.00038356,8]
[394739886,1763922655095,-500.0,0.00038356,8]
[394739887,1763922655103,-632.83,0.00038356,8]
[394739888,1763922655112,-500.0,0.00038356,8]
[394739889,1763922655121,-812.03,0.00038356,8]
[394739890,1763922655130,-500.0,0.00038356,8]
[394739891,1763922655139,-500.0,0.00038356,8]
[394739892,1763922655148,-503.73,0.00038356,8]
[394739893,1763922655158,-500.0,0.00038356,8]
[394739894,1763922655168,-500.0,0.00038356,8]
[394739895,1763922655178,-500.0,0.00038356,8]
[394739896,1763922655187,-901.63,0.00038356,8]
[394739897,1763922655197,-1535.59,0.00038356,8]
[394739898,1763922655210,-500.0,0.00038356,8]
[394739899,1763922655224,-907.08,0.00038356,8]
[394739900,1763922655233,-500.0,0.00038356,8]
[394739901,1763922655243,-500.0,0.00038356,8]
[394739902,1763922655255,-500.0,0.00038356,8]
[394739903,1763922655264,-500.0,0.00038356,8]
[394739904,1763922655275,-500.0,0.00038356,8]
[394739905,1763922655286,-500.0,0.00038356,8]
[394739906,1763922655296,-1889.72,0.00038356,8]
[394739907,1763922655305,-500.0,0.00038356,8]
[394739908,1763922655315,-1459.13,0.00038356,8]
[394739909,1763922655324,-151.0,0.00038356,31]
[394739910,1763922655333,-500.0,0.00038356,8]
[394739911,1763922655343,-500.0,0.00038356,8]
[394739912,1763922655352,-500.0,0.00038356,8]
[394739913,1763922655362,-501.44,0.00038356,8]
[394739914,1763922655371,-500.0,0.00038356,8]
[394739915,1763922655381,-500.0,0.00038356,8]
[394739916,1763922655390,-1621.98,0.00038356,8]
[394739917,1763922655399,-661.0,0.00038356,8]
[394739918,1763922655408,-1121.59,0.00038356,8]
[394739919,1763922655418,-500.0,0.00038356,8]
[394739920,1763922655427,-500.0,0.00038356,8]
[394739921,1763922655437,-198.759861,0.00038356,30]
[394739922,1763922655446,-500.0,0.00038356,8]
[394739923,1763922655455,-500.0,0.00038356,8]
[394739924,1763922655464,-500.0,0.00038356,8]
[394739925,1763922655473,-198.759861,0.00038356,30]
[394739926,1763922655483,-500.0,0.00038356,8]
[394739927,1763922655492,-198.759861,0.00038356,30]
[394739928,1763922655502,-500.0,0.00038356,8]
[394739929,1763922655512,-500.0,0.00038356,8]
[394739930,1763922655522,-689.35,0.00038356,8]
[394739931,1763922655532,-198.759861,0.00038356,30]
[394739932,1763922655542,-500.0,0.00038356,8]
[394739933,1763922655552,-507.83,0.00038356,8]
[394739934,1763922655562,-500.0,0.00038356,8]
[394739935,1763922655571,-500.0,0.00038356,8]
[394739936,1763922655581,-500.0,0.00038356,8]
[394739937,1763922655591,-851.09,0.00038356,8]
[394739938,1763922655602,-500.0,0.00038356,8]
[394739939,1763922655612,-500.0,0.00038356,8]
[394739940,1763922655622,-500.0,0.00038356,8]
[394739941,1763922655631,-500.0,0.00038356,8]
[394739942,1763922655641,-500.0,0.00038356,8]
[394739943,1763922655650,-1031.17,0.00038356,8]
[394739944,1763922655659,-500.0,0.00038356,8]
[394739945,1763922655668,-500.0,0.00038356,8]
[394739946,1763922655678,-500.0,0.00038356,8]
[394739947,1763922655687,-500.0,0.00038356,8]
[394739948,1763922655697,-500.0,0.00038356,8]
[394739949,1763922655706,-500.0,0.00038356,8]
[394739950,1763922655798,-500.0,0.00038356,8]
[394739951,1763922655838,-500.0,0.00038356,8]
[394739952,1763922655849,-500.0,0.00038356,8]
[394739953,1763922655860,-500.0,0.00038356,8]
[394739954,1763922655870,-552.81,0.00038356,8]
[394739955,1763922655880,-500.0,0.00038356,8]
[394739956,1763922655890,-500.0,0.00038356,8]
[394739957,1763922655900,-500.0,0.00038356,8]
[394739958,1763922655910,-500.0,0.00038356,8]
[394739959,1763922655919,-566.06,0.00038356,8]
[394739960,1763922655929,-511.47,0.00038356,8]
[394739961,1763922655938,-500.0,0.00038356,8]
[394739962,1763922655949,-467.99345174,0.00038356,8]
[394739963,1763922655958,-573.92,0.00038356,8]
[394739964,1763922655967,-500.0,0.00038356,8]
[394739965,1763922655976,-500.0,0.00038356,8]
[394739966,1763922655986,-500.0,0.00038356,8]
[394739967,1763922655996,-500.0,0.00038356,8]
[394739968,1763922656005,-527.06,0.00038356,8]
[394739969,1763922656015,-500.0,0.00038356,8]
[394739970,1763922656027,-1225.58,0.00038356,8]
[394739971,1763922656037,-151.0,0.00038356,31]
[394739972,1763922656046,-500.0,0.00038356,8]
[394739973,1763922656056,-2214.73,0.00038356,8]
[394739974,1763922656065,-500.0,0.00038356,8]
[394739975,1763922656075,-500.0,0.00038356,8]
[394739976,1763922656086,-500.0,0.00038356,8]
[394739977,1763922656095,-583.94,0.00038356,8]
[394739978,1763922656106,-500.0,0.00038356,8]
[394739979,1763922656115,-500.0,0.00038356,2]
[394739980,1763922656125,-500.0,0.00038356,8]
[394739981,1763922656135,-500.0,0.00038356,8]
[394739982,1763922656146,-973.15,0.00038356,8]
[394739983,1763922656155,-500.0,0.00038356,8]
[394739984,1763922656166,-154.25143589,0.00038356,8]
[394739985,1763922656176,-500.0,0.00038356,8]
[394739986,1763922656186,-500.0,0.00038356,8]
[394739987,1763922656195,-500.0,0.00038356,8]
[394739988,1763922656205,-500.0,0.00038356,8]
[394739989,1763922656218,-779.14,0.00038356,8]
[394739990,1763922656227,-500.0,0.00038356,8]
[394739991,1763922656236,-933.53,0.00038356,8]
[394739992,1763922656246,-575.58,0.00038356,8]
[394739993,1763922656256,-500.0,0.00038356,8]
[394739994,1763922656265,-500.0,0.00038356,8]
[394739995,1763922656274,-500.0,0.00038356,8]
[394739996,1763922656284,-500.0,0.00038356,8]
[394739997,1763922656294,-5459.86,0.00038356,8]
[394739998,1763922656304,-500.0,0.00038356,8]
[394739999,1763922656315,-590.94297344,0.00038356,8]
[394740000,1763922656325,-939.93,0.00038356,8]
[394740001,1763922656336,-1181.37,0.00038356,8]
[394740002,1763922656346,-500.0,0.00038356,8]
[394740003,1763922656356,-500.0,0.00038356,8]
[394740004,1763922656366,-516.07016131,0.00038356,8]
[394740005,1763922656376,-500.0,0.00038356,8]
[394740006,1763922656385,-500.0,0.00038356,8]
[394740007,1763922656395,-500.0,0.00038356,8]
[394740008,1763922656406,-317.9088575,0.00038356,8]
[394740009,1763922656417,-503.9,0.00038356,8]
[394740010,1763922656427,-500.0,0.00038356,8]
[394740011,1763922656436,-500.0,0.00038356,8]
[394740012,1763922656447,-500.0,0.00038356,8]
[394740013,1763922656457,-340.22398679,0.00038356,2]
[394740014,1763922656466,-600.0,0.00038356,30]
[394740015,1763922656476,-150.0,0.00038356,5]
[394740016,1763922656485,-500.0,0.00038373,5]
[394740017,1763922656495,-501.0377101,0.00038373,5]
[394740018,1763922656504,-580.65522907,0.00038373,5]
[394740019,1763922656514,-268.06848757,0.00038373,5]
[394740020,1763922656524,-217.83804072,0.00038394,2]
[394740021,1763922656534,-284.988626,0.00038493,120]
[394740022,1763922656544,-151.0,0.00038493,120]
[394740023,1763922656554,-169.71,0.00038493,2]
[394740024,1763922656563,-150.0,0.00038493,2]
[394740025,1763922656572,-227.07,0.00038493,2]
[394740026,1763922656582,-1233.02,0.000385,38]
[394740027,1763922656591,-2000.0,0.000385,38]
[394740028,1763922656601,-4145.47838,0.0003851,2]
[394740029,1763922656610,-830.0,0.00038546,7]
[394740030,1763922656620,-830.0,0.00038546,7]
[394740031,1763922656630,-177.6,0.00038548,2]
[394740032,1763922656640,-177.6,0.00038548,2]
[394740033,1763922656651,-500.0,0.00038596,5]
[394740034,1763922656661,-1500.0,0.00038596,5]
[394740035,1763922656671,-1481.70785925,0.00038596,5]
[394740036,1763922656681,-169.71,0.00038628,2]
[394740037,1763922656692,-417.4,0.00038628,2]
[394740038,1763922656703,-417.4,0.00038628,2]
[394740039,1763922656712,-417.4,0.00038628,2]
[394740040,1763922656722,-355.08,0.00038628,2]
[394740041,1763922656732,-417.4,0.00038628,2]
[394740042,1763922656749,-417.4,0.00038628,2]
[394740043,1763922656758,-417.4,0.00038628,2]
[394740044,1763922656768,-417.4,0.00038628,2]
[394740045,1763922656778,-201.2,0.00038628,2]
[394740046,1763922656788,-150.0,0.00038628,2]
[394740047,1763922656797,-1211.3,0.00038628,2]
[394740048,1763922656807,-1211.3,0.00038628,2]
[394740049,1763922656816,-1211.3,0.00038628,2]
[394740050,1763922656826,-1211.3,0.00038628,2]
[394740051,1763922656835,-1211.3,0.00038628,2]
[394740052,1763922656845,-1211.3,0.00038628,2]
[394740053,1763922656855,-304.58,0.00038628,2]
[394740054,1763922656864,-1211.3,0.00038628,2]
[394740055,1763922656873,-2422.6,0.00038628,2]
[394740056,1763922656884,-150.0,0.00038628,2]
[394740057,1763922656894,-1211.3,0.00038628,2]
[394740058,1763922656904,-300.0,0.00038628,2]
[394740059,1763922656914,-1211.3,0.00038628,2]
[394740060,1763922656924,-1211.3,0.00038628,2]
[394740061,1763922656934,-300.0,0.00038628,2]
[394740062,1763922656944,-1211.3,0.00038628,2]
[394740063,1763922656954,-500.0,0.00038629,2]
[394740064,1763922656964,-500.0,0.00038629,2]
[394740065,1763922656975,-500.0,0.0003863,8]
[394740066,1763922656984,-300.0,0.0003863,8]
[394740067,1763922656993,-500.0,0.0003863,8]
[394740068,1763922657002,-500.0,0.0003863,8]
[394740069,1763922657012,-500.0,0.0003863,8]
[394740070,1763922657022,-401.58174822,0.0003863,8]
[394740071,1763922657032,-500.0,0.0003863,8]
[394740072,1763922657041,-500.0,0.0003863,8]
[394740073,1763922657051,-500.0,0.0003863,8]
[394740074,1763922657061,-500.0,0.0003863,8]
[394740075,1763922657070,-500.0,0.0003863,8]
[394740076,1763922657080,-500.0,0.0003863,8]
[394740077,1763922657090,-500.0,0.0003863,8]
[394740078,1763922657099,-500.0,0.0003863,8]
[394740079,1763922657109,-500.36,0.0003863,8]
[394740080,1763922657118,-504.94374761,0.0003863,8]
[394740081,1763922657127,-500.0,0.0003863,8]
[394740082,1763922657137,-500.0,0.0003863,8]
[394740083,1763922657146,-500.0,0.0003863,8]
[394740084,1763922657155,-696.56,0.0003863,8]
[394740085,1763922657164,-500.0,0.0003863,8]
[394740086,1763922657174,-500.0,0.0003863,8]
[394740087,1763922657183,-768.3,0.0003863,8]
[394740088,1763922657193,-592.5,0.0003863,8]
[394740089,1763922657204,-500.0,0.0003863,8]
[394740090,1763922657217,-500.0,0.0003863,8]
[394740091,1763922657228,-513.91,0.0003863,8]
[394740092,1763922657239,-500.0,0.0003863,8]
[394740093,1763922657250,-500.0,0.0003863,8]
[394740094,1763922657260,-500.0,0.0003863,8]
[394740095,1763922657271,-500.0,0.0003863,8]
[394740096,1763922657282,-500.0,0.0003863,8]
[394740097,1763922657293,-500.0,0.0003863,8]
[394740098,1763922657302,-639.39,0.0003863,8]
[394740099,1763922657312,-538.82222941,0.0003863,8]
[394740100,1763922657322,-500.0,0.0003863,8]
[394740101,1763922657332,-500.0,0.0003863,8]
[394740102,1763922657343,-500.0,0.0003863,8]
[394740103,1763922657353,-500.0,0.0003863,8]
[394740104,1763922657363,-500.0,0.0003863,8]
[394740105,1763922657372,-500.0,0.0003863,8]
[394740106,1763922657382,-500.0,0.0003863,8]
[394740107,1763922657391,-500.0,0.0003863,8]
[394740108,1763922657401,-500.0,0.0003863,8]
[394740109,1763922657411,-575.28,0.0003863,8]
[394740110,1763922657421,-415.65296654,0.0003863,8]
[394740111,1763922657431,-500.0,0.0003863,8]
[394740112,1763922657442,-500.0,0.0003863,8]
[394740113,1763922657452,-500.0,0.0003863,8]
[394740114,1763922657463,-500.0,0.0003863,8]
[394740115,1763922657474,-500.0,0.0003863,8]
[394740116,1763922657484,-500.0,0.0003863,8]
[394740117,1763922657495,-500.0,0.0003863,8]
[394740118,1763922657506,-500.0,0.0003863,8]
[394740119,1763922657516,-530.5604855,0.0003863,8]
[394740120,1763922657526,-515.93910646,0.0003863,8]
[394740121,1763922657536,-500.0,0.0003863,8]
[394740122,1763922657547,-500.0,0.0003863,8]
[394740123,1763922657558,-566.34,0.0003863,8]
[394740124,1763922657568,-417.04921427,0.0003863,8]
[394740125,1763922657577,-500.0,0.0003863,8]
[394740126,1763922657588,-968.13,0.0003863,8]
[394740127,1763922657597,-500.0,0.0003863,8]
[394740128,1763922657608,-500.0,0.0003863,8]
[394740129,1763922657619,-500.0,0.0003863,8]
[394740130,1763922657629,-500.0,0.0003863,8]
[394740131,1763922657639,-751.39,0.0003863,8]
[394740132,1763922657650,-500.0,0.0003863,8]
[394740133,1763922657659,-987.75,0.0003863,8]
[394740134,1763922657669,-500.0,0.0003863,8]
[394740135,1763922657679,-500.0,0.0003863,8]
[394740136,1763922657689,-500.0,0.0003863,8]
[394740137,1763922657698,-500.0,0.0003863,8]
[394740138,1763922657708,-874.64,0.0003863,8]
[394740139,1763922657718,-500.0,0.0003863,8]
[394740140,1763922657727,-500.0,0.0003863,8]
[394740141,1763922657737,-638.97,0.0003863,8]
[394740142,1763922657747,-500.0,0.0003863,8]
[394740143,1763922657756,-500.0,0.0003863,8]
[394740144,1763922657767,-500.0,0.0003863,8]
[394740145,1763922657777,-500.0,0.0003863,8]
[394740146,1763922657788,-500.0,0.0003863,8]
[394740147,1763922657799,-500.0,0.0003863,8]
[394740148,1763922657809,-500.0,0.0003863,8]
[394740149,1763922657819,-500.0,0.0003863,8]
[394740150,1763922657829,-555.42,0.0003863,8]
[394740151,1763922657839,-590.09,0.0003863,8]
[394740152,1763922657850,-500.0,0.0003863,8]
[394740153,1763922657861,-500.0,0.0003863,8]
[394740154,1763922657871,-500.0,0.0003863,8]
[394740155,1763922657881,-500.0,0.0003863,8]
[394740156,1763922657891,-500.0,0.0003863,8]
[394740157,1763922658186,-1054.69,0.0003863,8]
[394740158,1763922658211,-474.6304201,0.0003863,8]
[394740159,1763922658222,-500.0,0.0003863,8]
[394740160,1763922658233,-500.0,0.0003863,8]
[394740161,1763922658243,-500.0,0.0003863,8]
[394740162,1763922658254,-500.0,0.0003863,8]
[394740163,1763922658264,-500.0,0.0003863,8]
[394740164,1763922658274,-500.0,0.0003863,8]
[394740165,1763922658284,-500.0,0.0003863,8]
[394740166,1763922658296,-500.0,0.0003863,8]
[394740167,1763922658306,-500.0,0.0003863,8]
[394740168,1763922658317,-500.0,0.0003863,8]
[394740169,1763922658328,-422.22717036,0.0003863,8]
[394740170,1763922658339,-500.0,0.0003863,8]
[394740171,1763922658349,-537.16,0.0003863,8]
[394740172,1763922658359,-500.0,0.0003863,8]
[394740173,1763922658370,-750.63,0.0003863,8]
[394740174,1763922658382,-517.31973521,0.0003863,8]
[394740175,1763922658393,-500.0,0.0003863,8]
[394740176,1763922658403,-500.0,0.0003863,8]
[394740177,1763922658414,-500.0,0.0003863,8]
[394740178,1763922658424,-500.0,0.0003863,8]
[394740179,1763922658435,-500.0,0.0003863,8]
[394740180,1763922658445,-500.0,0.0003863,8]
[394740181,1763922658456,-500.0,0.0003863,8]
[394740182,1763922658467,-500.0,0.0003863,8]
[394740183,1763922658479,-500.0,0.0003863,8]
[394740184,1763922658490,-500.0,0.0003863,8]
[394740185,1763922658501,-500.0,0.0003863,8]
[394740186,1763922658511,-500.0,0.0003863,8]
[394740187,1763922658521,-500.0,0.0003863,8]
[394740188,1763922658531,-700.0,0.0003863,120]
[394740189,1763922658541,-642.61,0.0003863,8]
[394740190,1763922658551,-500.0,0.0003863,8]
[394740191,1763922658562,-946.15,0.0003863,8]
[394740192,1763922658572,-500.0,0.0003863,8]
[394740193,1763922658582,-500.0,0.0003863,8]
[394740194,1763922658592,-500.0,0.0003863,8]
[394740195,1763922658602,-646.49,0.0003863,8]
[394740196,1763922658612,-844.53,0.0003863,8]
[394740197,1763922658623,-511.82,0.0003863,8]
[394740198,1763922658634,-500.0,0.0003863,8]
[394740199,1763922658643,-500.0,0.0003863,8]
[394740200,1763922658650,-500.0,0.0003863,8]
[394740201,1763922658663,-500.0,0.0003863,8]
[394740202,1763922658673,-500.0,0.0003863,8]
[394740203,1763922658683,-568.8,0.0003863,8]
[394740204,1763922658693,-500.0,0.0003863,8]
[394740205,1763922658703,-500.0,0.0003863,8]
[394740206,1763922658713,-500.0,0.0003863,8]
[394740207,1763922658722,-1000.0,0.0003863,8]
[394740208,1763922658732,-500.0,0.0003863,8]
[394740209,1763922658742,-500.0,0.0003863,8]
[394740210,1763922658751,-500.0,0.0003863,8]
[394740211,1763922658761,-500.0,0.0003863,8]
[394740212,1763922658771,-516.38,0.0003863,8]
[394740213,1763922658781,-500.0,0.0003863,8]
[394740214,1763922658790,-981.95,0.0003863,8]
[394740215,1763922658800,-500.0,0.0003863,8]
[394740216,1763922658810,-500.0,0.0003863,8]
[394740217,1763922658820,-168.574458,0.0003863,8]
[394740218,1763922658829,-1225.07,0.0003863,8]
[394740219,1763922658839,-526.68,0.0003863,8]
[394740220,1763922658848,-676.45,0.0003863,8]
[394740221,1763922658858,-500.0,0.0003863,8]
[394740222,1763922658868,-500.0,0.0003863,8]
[394740223,1763922658878,-500.0,0.0003863,8]
[394740224,1763922658888,-653.68,0.0003863,8]
[394740225,1763922658898,-500.0,0.0003863,8]
[394740226,1763922658908,-561.21,0.0003863,8]
[394740227,1763922658917,-500.0,0.0003863,8]
[394740228,1763922658927,-500.0,0.0003863,8]
[394740229,1763922658937,-500.0,0.0003863,8]
[394740230,1763922658947,-500.0,0.0003863,8]
[394740231,1763922658956,-612.73,0.0003863,8]
[394740232,1763922658966,-500.0,0.0003863,8]
[394740233,1763922658976,-357.66733463,0.0003863,8]
[394740234,1763922658985,-615.66,0.0003863,8]
[394740235,1763922658995,-1000.0,0.0003863,120]
[394740236,1763922659005,-500.0,0.0003863,8]
[394740237,1763922659016,-500.0,0.0003863,8]
[394740238,1763922659026,-500.0,0.0003863,8]
[394740239,1763922659036,-578.55,0.0003863,8]
[394740240,1763922659045,-597.62,0.0003863,8]
[394740241,1763922659055,-500.0,0.0003863,8]
[394740242,1763922659066,-500.0,0.0003863,8]
[394740243,1763922659075,-500.0,0.0003863,8]
[394740244,1763922659085,-500.0,0.0003863,8]
[394740245,1763922659095,-500.0,0.0003863,8]
[394740246,1763922659104,-500.0,0.0003863,8]
[394740247,1763922659114,-500.0,0.0003863,8]
[394740248,1763922659124,-500.0,0.0003863,8]
[394740249,1763922659133,-500.0,0.0003863,8]